bitfinex/quotes_ETHUSD_20240910
["timestamp","ask_amount","ask_price","bid_price","bid_amount"]
[1725928246321,3.0,2346.4,2345.4,2.52880081]
[1725928246596,7.52801988,2346.4,2345.4,2.52880081]
[1725928248295,7.52801988,2346.4,2345.4,2.2588]
[1725928248492,2.2972,2346.3,2345.4,2.2588]
[1725928248792,4.52801988,2346.1,2344.7,2.4544]
[1725928249126,2.2972,2346.3,2344.7,2.4544]
[1725928249127,4.52801988,2345.8,2344.7,2.4544]
[1725928249433,0.45280199,2345.7,2344.7,2.4544]
[1725928249643,3.45280199,2345.7,2344.7,2.4544]
[1725928256199,7.13497798,2345.7,2344.7,2.4544]
[1725928260341,0.45280199,2345.7,2344.7,2.4544]
[1725928260672,11.91502788,2345.9,2344.8,2.4925]
[1725928260834,11.91502788,2345.9,2344.8,5.4925]
[1725928261350,11.91502788,2345.9,2344.8,2.4925]
[1725928264526,8.23285189,2345.9,2344.8,2.4925]
[1725928266166,5.90155189,2345.9,2345.0,2.3633]
[1725928266365,5.90155189,2345.9,2345.1,0.40227137]
[1725928266888,3.68217599,2345.3,2344.5,2.4549]
[1725928267043,3.68217599,2345.3,2344.1,0.02778649]
[1725928267044,2.2657,2345.4,2344.2,2.4549]
[1725928267430,2.2657,2345.4,2344.3,0.80689103]
[1725928267972,2.2657,2345.4,2344.2,2.4549]
[1725928268171,0.22657,2345.3,2344.3,1.05516117]
[1725928268433,0.22657,2345.3,2344.3,0.24826865]
[1725928268580,0.22657,2345.3,2344.4,0.89218147]
[1725928268881,5.94787599,2345.4,2344.5,0.80684781]
[1725928268882,2.2657,2345.4,2344.5,0.80684781]
[1725928269078,2.2657,2345.4,2344.4,2.4295]
[1725928269289,2.2657,2345.4,2344.5,0.80685049]
[1725928269437,2.2657,2345.4,2344.4,2.4295]
[1725928269643,2.49227,2345.4,2344.5,1.07462799]
[1725928269843,2.49227,2345.4,2344.5,0.26777686]
[1725928270662,2.2657,2345.4,2344.5,0.26777686]
[1725928271347,2.2657,2345.4,2344.5,3.26777686]
[1725928271544,5.99247599,2345.7,2344.6,2.4878]
[1725928271790,5.99247599,2345.7,2344.6,5.4878]
[1725928281397,5.90155189,2345.8,2344.6,5.4878]
[1725928281398,5.90155189,2345.8,2344.7,2.3888]
[1725928281702,5.90155189,2345.8,2344.8,0.53888]
[1725928281928,5.90155189,2345.8,2344.9,2.47408252]
[1725928282275,5.90155189,2345.8,2344.9,5.47408252]
[1725928282499,5.90155189,2345.8,2344.9,7.12934241]
[1725928283610,5.90155189,2345.8,2344.9,5.47408252]
[1725928283816,7.09879468,2345.8,2345.0,0.69026617]
[1725928284140,7.09879468,2345.8,2345.0,3.69026617]
[1725928285813,5.90155189,2345.8,2345.1,2.2913]
[1725928286019,16.12217599,2346.2,2345.2,3.39541058]
[1725928286020,3.68217599,2346.2,2345.2,3.39541058]
[1725928286176,0.55,2346.1,2345.2,2.2913]
[1725928286379,1.4510176,2346.1,2345.2,5.97842653]
[1725928288212,3.68217599,2346.0,2345.2,5.97842653]
[1725928290513,1.4510176,2346.1,2345.2,5.97842653]
[1725928292330,0.55,2346.1,2345.3,2.2607]
[1725928292535,12.44,2346.8,2345.7,2.2607]
[1725928292692,5.98537599,2346.9,2345.8,3.68217599]
[1725928292892,0.5985376,2346.8,2346.0,2.2607]
[1725928293207,12.44,2347.5,2346.1,0.08525124]
[1725928293208,14.7432,2347.5,2346.1,0.08525124]
[1725928293510,2.3032,2347.5,2346.3,2.4085]
[1725928293721,2.3032,2347.5,2346.4,0.08522756]
[1725928293922,2.3032,2347.5,2346.5,2.4085]
[1725928294759,3.68217599,2347.7,2346.5,6.09067599]
[1725928294919,4.28174359,2347.7,2346.7,2.4869]
[1725928295552,0.5995676,2347.7,2346.8,0.0852133]
[1725928295710,18.34155189,2348.3,2346.7,3.68217599]
[1725928295711,3.68217599,2348.2,2347.0,2.4022]
[1725928295916,12.44,2348.4,2347.2,2.4022]
[1725928295917,18.50917599,2348.4,2347.2,2.4022]
[1725928296131,14.827,2348.4,2347.4,2.4022]
[1725928296326,3.68217599,2348.6,2347.5,0.08519459]
[1725928296526,0.48712713,2349.2,2347.6,3.68217599]
[1725928296527,3.68217599,2348.9,2347.6,3.68217599]
[1725928296756,12.44,2349.2,2347.7,2.45137493]
[1725928296757,2.3356,2349.1,2347.7,2.45137493]
[1725928296929,2.3356,2349.1,2347.5,0.61695706]
[1725928296930,6.01777599,2349.1,2347.9,2.3662]
[1725928297131,0.42484302,2349.4,2348.1,2.3662]
[1725928297132,3.68217599,2349.3,2348.1,2.3662]
[1725928297365,3.68217599,2349.3,2348.1,2.45136234]
[1725928297665,0.3682176,2349.2,2348.2,0.61335383]
[1725928298565,2.3356,2349.5,2348.1,2.45136234]
[1725928298718,2.3356,2349.5,2348.2,0.0851604]
[1725928299828,4.51774898,2348.7,2347.6,2.4124]
[1725928300028,4.51774898,2348.4,2347.6,2.4124]
[1725928300344,0.98094272,2348.3,2347.6,2.4124]
[1725928300549,3.98094272,2348.3,2347.6,2.4124]
[1725928300731,3.4517749,2348.3,2347.6,2.4124]
[1725928301062,0.4517749,2348.3,2347.6,2.4124]
[1725928301421,3.0,2348.9,2347.6,2.4124]
[1725928301620,0.55,2348.8,2347.6,2.4124]
[1725928303963,0.55,2349.0,2347.6,2.4124]
[1725928305145,4.51774898,2349.1,2347.7,2.35087942]
[1725928305351,4.51774898,2349.1,2347.8,2.35087207]
[1725928305352,3.0,2349.0,2347.8,2.35087207]
[1725928305664,0.7517749,2348.9,2347.9,0.23508721]
[1725928306016,0.7517749,2348.9,2348.0,2.2657]
[1725928320198,3.67208947,2348.8,2348.0,2.2657]
[1725928321511,3.67208947,2348.6,2348.0,2.2657]
[1725928321706,0.36720895,2348.5,2348.0,2.2657]
[1725928322046,3.49583449,2348.7,2347.4,2.3067]
[1725928322256,0.55,2348.6,2347.4,2.3067]
[1725928322545,3.67208947,2348.0,2347.4,2.3067]
[1725928322747,3.67208947,2347.6,2346.7,2.3681]
[1725928323242,5.90155189,2347.8,2346.8,0.08521779]
[1725928323446,5.90155189,2347.8,2346.9,2.3034]
[1725928325115,5.90155189,2347.8,2346.9,2.38860431]
[1725928325645,5.90155189,2347.8,2346.9,2.3034]
[1725928325863,5.90155189,2347.8,2347.0,2.76573944]
[1725928326150,5.90155189,2347.8,2347.0,2.68054]
[1725928326359,5.90155189,2347.8,2347.0,2.4502]
[1725928327215,0.55,2347.7,2347.0,2.4502]
[1725928327618,3.67208947,2347.2,2347.0,2.4502]
[1725928327813,3.55,2347.7,2347.0,2.4502]
[1725928328048,3.0,2347.7,2347.0,2.4502]
[1725928328261,3.89015519,2347.7,2347.0,2.4502]
[1725928328619,3.89015519,2347.7,2346.0,0.4968407]
[1725928328620,3.67208947,2347.5,2346.8,2.4419]
[1725928328860,3.67208947,2347.0,2345.7,2.4419]
[1725928329152,3.67208947,2347.0,2345.7,3.67208947]
[1725928329361,3.67208947,2347.2,2345.8,2.4419]
[1725928329653,4.33929842,2347.2,2345.9,3.08099895]
[1725928330154,3.67208947,2347.0,2345.9,3.08099895]
[1725928330923,3.67208947,2347.0,2346.1,2.4662]
[1725928336524,3.67208947,2346.8,2346.1,2.4662]
[1725928336719,0.36720895,2346.7,2346.1,2.4662]
[1725928336917,6.56876084,2347.2,2346.2,0.08524188]
[1725928337198,3.0,2347.1,2345.8,2.447]
[1725928337330,3.0,2347.1,2346.0,2.447]
[1725928337530,3.0,2347.1,2346.2,2.447]
[1725928338244,6.67208947,2347.1,2346.2,2.447]
[1725928338446,1.32408503,2347.0,2346.2,2.6917]
[1725928339124,3.0,2347.1,2346.4,2.2921]
[1725928340676,5.90155189,2347.2,2346.6,2.4246]
[1725928342232,5.90155189,2347.5,2346.8,2.4566]
[1725928342575,5.90155189,2347.8,2347.0,2.4566]
[1725928342759,5.90155189,2347.8,2347.1,0.25418066]
[1725928343106,5.90155189,2348.1,2347.2,2.3054]
[1725928343231,5.90155189,2348.1,2347.2,2.39060648]
[1725928343431,5.90155189,2348.1,2347.3,0.0851974]
[1725928343634,9.57364136,2348.1,2347.4,2.3054]
[1725928343951,0.95736414,2348.0,2347.4,2.3054]
[1725928345252,5.90155189,2348.1,2347.4,2.3054]
[1725928345454,5.90155189,2348.1,2347.5,2.52209083]
[1725928345865,5.90155189,2348.4,2347.7,2.4369]
[1725928346082,5.90155189,2348.7,2347.9,2.4915]
[1725928346687,5.90155189,2348.7,2348.1,2.4915]
[1725928346981,5.90155189,2348.7,2348.1,2.74916704]
[1725928347947,5.90155189,2349.0,2348.3,2.4808]
[1725928348171,3.67208947,2349.1,2348.3,2.4808]
[1725928348651,5.90155189,2349.3,2348.3,2.4808]
[1725928348850,5.90155189,2349.3,2348.5,2.4808]
[1725928349075,2.20136414,2349.2,2348.5,2.4808]
[1725928350153,5.90155189,2349.3,2348.6,0.08515212]
[1725928350450,5.90155189,2349.6,2348.7,2.2548]
[1725928351808,3.0,2349.5,2348.7,2.2548]
[1725928352303,3.67208947,2349.3,2348.7,2.2548]
[1725928352462,3.67208947,2349.1,2348.7,2.2548]
[1725928352665,4.03929842,2349.1,2348.7,2.2548]
[1725928352907,0.36720895,2349.1,2348.7,2.2548]
[1725928355043,4.03929842,2349.1,2348.3,2.4648]
[1725928355314,3.67208947,2349.3,2348.3,2.4648]
[1725928355615,3.0,2349.2,2348.3,2.4648]
[1725928357223,3.67208947,2349.1,2348.3,2.4648]
[1725928357430,0.66720895,2349.0,2348.3,2.4648]
[1725928359210,3.0,2349.2,2348.3,2.4648]
[1725928360912,5.90155189,2349.3,2348.3,2.4648]
[1725928360913,5.90155189,2349.3,2348.4,2.4743405]
[1725928361123,5.90155189,2349.3,2348.5,2.3892]
[1725928361316,5.90155189,2349.3,2348.3,4.09948947]
[1725928361317,5.90155189,2349.3,2348.7,2.3892]
[1725928361621,5.90155189,2349.3,2347.9,2.0]
[1725928361622,5.90155189,2349.3,2348.9,2.4033]
[1725928362498,5.90155189,2349.3,2348.9,2.65214405]
[1725928362694,3.67208947,2349.9,2348.9,2.65214405]
[1725928362895,0.55,2349.8,2348.9,2.65214405]
[1725928363194,3.67208947,2349.7,2348.9,2.65214405]
[1725928363509,7.32,2350.0,2348.9,2.65214405]
[1725928363829,7.32,2350.0,2348.6,3.0]
[1725928363830,9.46907615,2350.0,2349.1,2.4608]
[1725928364330,9.46907615,2350.0,2349.1,2.5459263]
[1725928364331,3.0,2349.9,2349.1,2.5459263]
[1725928364824,7.32,2350.0,2349.1,2.5459263]
[1725928365520,7.32,2350.0,2349.1,2.4608]
[1725928365739,3.67208947,2349.9,2349.1,2.4608]
[1725928366026,6.00486802,2349.9,2349.1,2.77614144]
[1725928366272,2.33277855,2349.9,2349.1,2.77614144]
[1725928366392,7.32,2350.0,2349.1,2.77614144]
[1725928368123,7.32,2350.0,2349.3,2.3717]
[1725928369823,3.67208947,2350.1,2349.3,2.3717]
[1725928370021,3.0,2350.0,2349.3,2.3717]
[1725928370707,3.0,2350.0,2349.2,2.367]
[1725928370909,3.0,2350.0,2349.5,2.367]
[1725928371117,3.0,2350.2,2349.5,2.367]
[1725928371632,3.0,2350.2,2349.6,0.08511566]
[1725928371921,3.0,2350.2,2349.7,2.2963]
[1725928372327,7.32,2350.6,2349.7,2.2963]
[1725928372528,3.67208947,2350.5,2349.8,0.22963]
[1725928373283,8.41920895,2350.6,2349.9,2.3547]
[1725928373623,3.0,2350.5,2349.9,2.3547]
[1725928373916,3.0,2350.6,2349.9,2.3547]
[1725928375643,3.67208947,2350.5,2349.9,2.3547]
[1725928380954,3.67208947,2350.1,2349.6,2.3471]
[1725928381265,0.36720895,2350.1,2349.6,2.3471]
[1725928381472,7.32,2350.5,2349.7,0.08511591]
[1725928381799,7.32,2350.5,2349.5,2.8387]
[1725928382670,7.32,2350.5,2349.6,2.45470292]
[1725928382872,7.32,2350.5,2349.8,2.3696]
[1725928383555,6.67208947,2350.7,2349.8,2.45470288]
[1725928384502,7.32,2350.8,2350.1,2.3696]
[1725928384698,7.32,2350.8,2350.2,0.08507936]
[1725928384903,7.32,2350.8,2350.3,2.3696]
[1725928385085,7.32,2351.2,2350.3,2.3696]
[1725928385290,0.732,2351.1,2350.3,2.60656]
[1725928385467,3.67208947,2351.0,2350.3,2.60656]
[1725928385994,0.732,2351.1,2350.3,2.60656]
[1725928386201,3.732,2351.1,2350.3,2.60656]
[1725928387308,7.40408947,2351.1,2350.3,2.60656]
[1725928387474,6.67208947,2351.1,2350.4,0.260656]
[1725928387882,6.67208947,2351.1,2350.5,2.444]
[1725928388276,3.0,2351.1,2350.5,2.444]
[1725928388598,6.67208947,2351.1,2350.5,2.444]
[1725928388859,3.67208947,2350.7,2350.2,2.3491]
[1725928389522,3.67208947,2350.9,2350.2,2.58401]
[1725928390018,3.67208947,2350.7,2350.2,2.3491]
[1725928391071,3.67208947,2350.9,2350.2,2.3491]
[1725928391471,3.0,2351.1,2350.2,2.3491]
[1725928392479,3.0,2351.1,2350.4,2.4728]
[1725928392686,6.67208947,2351.1,2350.4,2.4728]
[1725928392891,3.0,2351.1,2350.5,0.24728]
[1725928393092,3.0,2351.1,2350.6,2.4728]
[1725928393300,7.32,2351.2,2350.6,2.4728]
[1725928394394,7.32,2351.2,2350.8,2.2643]
[1725928394606,15.51195096,2351.5,2350.8,2.2643]
[1725928394607,3.67208947,2351.5,2350.8,2.2643]
[1725928395304,7.32,2351.6,2350.5,2.4098]
[1725928395508,7.32,2351.6,2350.7,2.4098]
[1725928395700,7.32,2351.6,2350.8,0.08506287]
[1725928395906,3.67208947,2351.9,2350.8,2.3409]
[1725928396198,3.67208947,2351.9,2350.7,2.0]
[1725928396199,3.67208947,2351.9,2350.9,2.7683]
[1725928396603,3.67208947,2351.9,2350.9,2.3409]
[1725928396798,3.67208947,2351.9,2351.1,2.2939]
[1725928397304,3.0,2351.8,2351.1,2.2939]
[1725928397513,3.67208947,2351.9,2351.1,2.2939]
[1725928397737,3.0,2351.8,2351.1,2.2939]
[1725928398031,3.67208947,2351.5,2350.7,2.3998]
[1725928398207,0.3,2351.7,2350.8,0.268352]
[1725928398406,3.0,2351.9,2350.8,0.268352]
[1725928398607,0.55,2351.8,2350.8,0.268352]
[1725928398825,3.67208947,2351.5,2350.7,2.3998]
[1725928398997,3.67208947,2351.3,2350.7,2.3998]
[1725928399406,3.0,2351.5,2350.7,2.3998]
[1725928399603,3.67208947,2351.2,2350.7,2.3998]
[1725928401437,3.0,2351.4,2350.7,2.3998]
[1725928401438,2.3473,2351.3,2350.7,2.3998]
[1725928401640,3.0,2351.1,2350.1,2.3541]
[1725928401843,7.87,2351.2,2350.1,2.3541]
[1725928402011,3.0,2351.1,2350.1,2.3541]
[1725928402344,3.0,2351.1,2350.3,2.3541]
[1725928402345,3.67208947,2351.0,2350.3,2.3541]
[1725928403210,3.0,2351.1,2350.3,2.3541]
[1725928403553,3.0,2351.1,2350.4,2.43918521]
[1725928404345,3.67208947,2351.0,2350.4,2.3541]
[1725928406210,3.0,2350.9,2350.4,2.3541]
[1725928407309,3.66720895,2350.9,2350.4,2.3541]
[1725928407717,3.66720895,2350.9,2350.1,2.4634]
[1725928407718,3.67208947,2350.5,2350.1,2.4634]
[1725928408015,3.67208947,2350.5,2349.3,3.52858449]
[1725928408016,3.0,2350.4,2349.3,2.4634]
[1725928408254,2.4994,2350.7,2349.3,2.4634]
[1725928408418,0.55,2350.6,2349.3,2.4634]
[1725928408624,0.60494,2350.5,2349.4,2.55204]
[1725928408946,3.67208947,2350.1,2349.4,2.55204]
[1725928409516,3.67208947,2349.9,2349.4,2.55204]
[1725928409863,3.67208947,2349.7,2349.4,2.3057]
[1725928410743,3.67208947,2349.9,2349.4,2.3057]
[1725928411973,3.67208947,2350.1,2349.5,0.08512446]
[1725928412203,3.0,2350.3,2349.1,2.836]
[1725928412414,3.0,2350.6,2349.3,2.4937]
[1725928412566,3.0,2350.8,2349.3,2.9211]
[1725928412762,2.3024,2351.0,2349.3,2.9211]
[1725928413116,7.75608344,2351.4,2349.2,5.84211153]
[1725928413117,3.67208947,2350.7,2349.5,4.09948947]
[1725928413260,3.67208947,2350.9,2349.6,2.34869179]
[1725928413968,3.67208947,2350.7,2349.6,2.34869179]
[1725928414197,7.32,2350.8,2349.6,2.34869179]
[1725928414364,7.32,2350.8,2349.8,2.3888]
[1725928414565,7.32,2350.8,2349.9,2.47389185]
[1725928419280,7.32,2350.8,2349.9,2.3888]
[1725928420245,7.32,2350.8,2350.0,2.36958966]
[1725928420886,7.32,2351.0,2350.0,2.2845]
[1725928421095,3.0,2350.9,2350.2,2.381]
[1725928422099,7.32,2351.0,2350.3,0.08508348]
[1725928422414,7.32,2351.3,2350.4,2.4214]
[1725928422595,4.51212108,2351.1,2350.4,2.4214]
[1725928422930,3.98891211,2351.0,2350.4,2.4214]
[1725928423397,6.85382108,2350.8,2349.8,2.2653]
[1725928423583,3.0,2350.7,2349.8,2.2653]
[1725928426629,4.51212108,2350.5,2349.6,2.4936]
[1725928426782,2.4211,2350.6,2349.6,2.4936]
[1725928426783,0.69332211,2350.4,2349.6,2.4936]
[1725928426988,0.55,2350.3,2349.6,2.4936]
[1725928427511,3.0,2350.5,2349.6,2.4936]
[1725928427512,0.55,2350.4,2349.6,2.4936]
[1725928427894,4.51212108,2350.2,2349.6,2.4936]
[1725928428096,3.0,2350.5,2349.7,0.24936]
[1725928428303,3.0,2350.5,2349.6,2.4936]
[1725928428684,0.55,2350.4,2349.6,2.4936]
[1725928429128,4.51212108,2350.1,2349.6,2.4936]
[1725928430201,4.51212108,2350.1,2349.0,2.284]
[1725928430407,4.51212108,2349.8,2349.0,2.284]
[1725928430736,4.51212108,2349.5,2349.0,2.284]
[1725928433732,3.0,2349.7,2349.0,2.284]
[1725928436340,3.66968859,2349.6,2349.0,2.284]
[1725928436555,3.0,2349.5,2349.0,2.284]
[1725928436714,3.0,2349.5,2349.0,2.5124]
[1725928440401,3.66968859,2349.4,2349.0,2.284]
[1725928441957,3.0,2349.5,2349.0,2.284]
[1725928442190,3.66968859,2349.6,2349.0,2.284]
[1725928442392,7.32,2349.9,2349.1,2.58473054]
[1725928442985,7.32,2350.1,2349.1,2.4996]
[1725928443178,7.32,2350.1,2349.2,2.58470517]
[1725928443692,7.32,2350.1,2349.2,2.4996]
[1725928446229,7.32,2350.1,2349.1,3.4274]
[1725928446230,7.32,2350.1,2349.3,2.57300525]
[1725928446432,7.32,2350.1,2349.5,2.4879]
[1725928448392,10.98968859,2350.1,2349.5,2.4879]
[1725928450697,3.66968859,2350.1,2349.5,2.4879]
[1725928453160,3.66968859,2349.7,2349.3,2.3855]
[1725928453430,3.66968859,2349.5,2349.3,2.3855]
[1725928455527,3.66968859,2349.5,2348.7,2.258]
[1725928459032,10.98968859,2349.7,2348.7,2.258]
[1725928459481,3.0,2349.6,2348.7,2.258]
[1725928460609,3.66968859,2349.3,2348.7,2.258]
[1725928460815,3.66968859,2349.3,2348.7,2.52654]
[1725928463102,3.66968859,2349.1,2348.7,2.258]
[1725928463493,3.0,2349.0,2348.3,2.3236]
[1725928463686,7.32,2349.3,2348.3,2.3236]
[1725928463926,3.0,2349.2,2348.3,2.3236]
[1725928464180,3.66968859,2348.9,2348.3,2.3236]
[1725928464340,3.66968859,2348.7,2348.3,2.3236]
[1725928464562,3.66968859,2348.7,2347.8,2.2512]
[1725928465296,10.98968859,2348.9,2348.0,2.3296]
[1725928465531,10.98968859,2348.9,2348.2,2.3366]
[1725928465532,3.0,2348.8,2348.2,2.3366]
[1725928465745,3.0,2348.8,2348.3,0.24217558]
[1725928470747,3.66968859,2348.7,2348.2,2.3366]
[1725928470953,3.0,2348.8,2348.2,2.3366]
[1725928471119,3.66968859,2348.4,2347.7,2.3344]
[1725928471322,2.3971,2348.6,2347.7,2.3344]
[1725928471715,3.66968859,2348.0,2347.7,2.3344]
[1725928471870,3.66968859,2348.2,2347.7,2.56784]
[1725928472076,3.66968859,2348.2,2347.7,2.3344]
[1725928478486,3.66968859,2348.0,2347.1,3.0]
[1725928478787,3.66968859,2347.8,2347.2,2.4632]
[1725928479063,0.36696886,2347.7,2347.2,2.4632]
[1725928479276,3.66968859,2347.8,2347.2,2.4632]
[1725928479426,3.66968859,2348.0,2347.2,2.4632]
[1725928480626,16.47788859,2348.2,2347.3,0.08519487]
[1725928480834,3.0,2348.1,2347.4,2.3085]
[1725928482469,3.0,2348.1,2347.6,2.398]
[1725928482675,6.66968859,2348.4,2347.6,2.398]
[1725928483556,6.66968859,2348.4,2347.7,2.48318572]
[1725928483882,6.66968859,2348.4,2347.8,0.24831857]
[1725928484482,6.66968859,2348.4,2347.8,0.33349583]
[1725928485441,3.0,2348.4,2347.9,2.398]
[1725928487086,3.0,2348.5,2347.9,2.398]
[1725928487254,3.0,2348.5,2347.9,2.66263186]
[1725928487458,3.0,2348.5,2348.0,0.08517464]
[1725928489068,10.98968859,2348.8,2348.1,2.4515]
[1725928489375,3.66968859,2348.8,2348.1,2.4515]
[1725928489571,3.66968859,2348.8,2348.1,2.73162978]
[1725928489990,3.66968859,2348.6,2348.1,2.73162978]
[1725928492083,3.66968859,2348.8,2348.1,2.73162978]
[1725928492404,3.0,2348.7,2348.1,2.73162978]
[1725928492599,3.0,2348.7,2348.2,2.50196297]
[1725928492898,3.66968859,2349.0,2348.3,0.27820928]
[1725928493055,3.66968859,2348.5,2348.2,2.4168]
[1725928493258,2.2529,2348.8,2347.9,2.4168]
[1725928494461,3.66968859,2348.1,2347.2,2.4168]
[1725928494861,7.32,2348.3,2347.3,2.4168]
[1725928495065,7.32,2348.3,2347.4,0.08518007]
[1725928495404,7.32,2348.3,2347.5,2.4168]
[1725928495604,7.32,2348.3,2347.6,0.24168]
[1725928496291,7.32,2348.3,2347.7,2.2734]
[1725928496493,10.32,2348.6,2347.7,2.2734]
[1725928496705,3.66968859,2348.3,2347.7,2.2734]
[1725928497001,10.32,2348.6,2347.7,2.2734]
[1725928497002,3.66968859,2348.1,2347.7,2.2734]
[1725928497209,3.66968859,2348.1,2347.3,2.4817]
[1725928497210,4.03665745,2348.1,2347.3,2.4817]
[1725928497501,3.66968859,2348.1,2347.3,2.4817]
[1725928500117,3.66968859,2347.9,2347.3,2.4817]
[1725928500284,3.66968859,2347.7,2347.3,2.4817]
[1725928500490,4.27583745,2347.7,2347.3,2.4817]
[1725928501075,4.27583745,2347.7,2346.6,2.4517]
[1725928502330,4.27583745,2347.7,2346.7,2.4929]
[1725928502531,4.27583745,2347.7,2346.8,2.4929]
[1725928503067,7.32,2347.8,2346.9,2.57811034]
[1725928503225,7.32,2347.8,2346.9,2.4929]
[1725928503412,7.32,2347.8,2347.0,2.37670265]
[1725928504446,7.32,2347.8,2347.1,0.08520264]
[1725928504657,3.66968859,2347.9,2347.2,2.2741]
[1725928504858,3.66968859,2347.9,2347.3,0.31260468]
[1725928505008,10.32,2348.0,2347.4,2.2741]
[1725928507559,13.98968859,2348.0,2347.4,2.2741]
[1725928508908,10.32,2348.0,2347.4,2.2741]
[1725928510512,3.66968859,2348.2,2347.4,2.2741]
[1725928510816,3.0,2348.1,2347.5,0.25867006]
[1725928511356,7.32,2348.3,2347.6,2.2547]
[1725928511543,3.66968859,2348.4,2347.6,2.2547]
[1725928512653,3.0,2348.3,2347.8,2.2519]
[1725928512865,10.98968859,2348.6,2348.0,2.2519]
[1725928513011,7.32,2348.6,2348.0,2.2519]
[1725928513538,7.32,2348.6,2348.1,0.08516624]
[1725928513857,3.66968859,2348.9,2348.1,0.08516624]
[1725928514043,3.66968859,2348.9,2348.2,2.4237]
[1725928514248,4.87185745,2348.9,2348.2,2.4237]
[1725928515324,3.66968859,2348.9,2348.2,2.4237]
[1725928515524,3.66968859,2348.9,2348.4,2.3674]
[1725928515724,7.32,2349.0,2348.4,2.3674]
[1725928516947,3.66968859,2348.9,2348.4,2.3674]
[1725928517153,7.32,2349.0,2348.4,2.3674]
[1725928517453,7.32,2349.0,2348.5,0.23674]
[1725928518581,7.32,2349.0,2348.5,0.32189454]
[1725928518740,7.32,2349.4,2348.6,2.4537]
[1725928518936,3.66968859,2349.5,2348.7,2.53884106]
[1725928519132,7.32,2349.6,2348.9,2.4537]
[1725928519939,3.66968859,2349.5,2348.9,2.4537]
[1725928520254,6.66968859,2349.5,2348.9,2.4537]
[1725928520757,6.66968859,2349.5,2348.9,2.69907]
[1725928520958,7.32,2349.8,2349.0,0.08513825]
[1725928521287,7.32,2349.8,2349.0,2.53883825]
[1725928521438,3.67056859,2349.9,2349.0,2.53883825]
[1725928521640,3.67056859,2349.9,2349.0,2.4537]
[1725928521848,3.67056859,2349.9,2349.2,2.3763]
[1725928522343,3.0,2349.8,2349.2,2.3763]
[1725928523496,0.00088,2349.9,2349.2,2.3763]
[1725928524566,0.00088,2349.9,2349.3,0.08511676]
[1725928524765,0.00088,2349.9,2349.4,2.3267]
[1725928525004,0.00088,2349.9,2349.1,3.93959559]
[1725928525005,0.00088,2349.9,2349.6,2.3549]
[1725928526811,3.67056859,2349.9,2349.2,2.2989]
[1725928526996,0.00088,2349.9,2349.2,2.2989]
[1725928528007,0.00088,2349.9,2349.3,0.08511921]
[1725928528160,0.00088,2349.9,2349.4,2.3662]
[1725928528368,0.00088,2349.9,2349.6,2.4227]
[1725928531807,3.66968859,2349.8,2349.2,2.2588]
[1725928532106,0.00088,2349.9,2349.3,0.08513038]
[1725928532406,0.00088,2349.9,2349.3,0.23439304]
[1725928539710,0.00088,2349.9,2349.4,2.4411]
[1725928540266,0.00088,2349.9,2349.6,2.4411]
[1725928544585,0.00088,2349.9,2349.3,0.23439304]
[1725928544586,0.00088,2349.9,2349.4,2.3615]
[1725928549475,3.66968859,2350.0,2349.4,2.3615]
[1725928549678,3.0,2350.1,2349.4,2.6210893]
[1725928549873,3.0,2350.1,2349.6,2.3772]
[1725928550528,13.98968859,2350.4,2349.7,0.08511417]
[1725928550710,6.66968859,2350.4,2349.8,2.3772]
[1725928550883,3.0,2350.3,2349.8,2.6234305]
[1725928552110,3.66968859,2350.2,2349.8,2.3772]
[1725928552605,3.66968859,2350.0,2349.2,2.3114]
[1725928554829,10.98968859,2350.2,2349.2,2.3114]
[1725928556635,3.66968859,2350.0,2349.2,2.3114]
[1725928557740,10.98968859,2350.2,2349.2,2.3114]
[1725928557881,3.0,2350.1,2349.3,0.23114]
[1725928558085,3.0,2350.1,2349.4,2.3114]
[1725928558336,7.32,2350.2,2349.5,0.08511134]
[1725928558535,7.32,2350.2,2349.6,2.3114]
[1725928560503,9.8093,2350.2,2349.6,2.3114]
[1725928560727,3.98093,2350.1,2349.6,2.3114]
[1725928562300,3.0,2350.1,2349.6,2.3114]
[1725928562803,7.32,2350.2,2349.8,2.486]
[1725928563002,3.0,2350.4,2349.8,2.486]
[1725928564251,7.32,2350.6,2349.9,0.08510412]
[1725928564455,7.32,2350.6,2349.9,2.41090412]
[1725928564753,7.32,2350.6,2350.1,2.3258]
[1725928565051,3.66968859,2350.9,2350.1,2.41089742]
[1725928565750,3.66968859,2350.9,2350.1,2.3258]
[1725928567342,3.66968859,2350.7,2350.1,2.3258]
[1725928568849,3.66968859,2350.5,2350.1,2.3258]
[1725928570042,6.07098859,2350.7,2350.1,2.3258]
[1725928570201,3.0,2350.6,2350.1,2.3258]
[1725928571520,3.0,2350.9,2350.1,2.3258]
[1725928572047,7.32,2351.0,2350.3,2.4827]
[1725928572241,7.32,2351.0,2350.5,2.4827]
[1725928576415,3.66968859,2351.1,2350.5,2.4827]
[1725928576613,3.0,2351.0,2350.5,2.4827]
[1725928576859,3.0,2351.0,2350.5,2.48122187]
[1725928577736,3.66968859,2350.9,2350.5,2.48122187]
[1725928578061,0.89901886,2350.8,2350.5,2.48122187]
[1725928581985,0.89901886,2350.8,2350.2,2.4364]
[1725928582287,0.89901886,2350.8,2349.7,2.4364]
[1725928582495,2.3275,2350.7,2349.7,2.4364]
[1725928583052,5.3275,2350.7,2349.7,2.4364]
[1725928583600,3.66968859,2350.5,2349.7,2.4364]
[1725928584297,3.0,2350.7,2349.8,2.52780597]
[1725928585356,3.0,2350.7,2349.8,2.4427]
[1725928585692,3.0,2350.7,2350.0,2.3822]
[1725928587665,2.3958,2350.0,2349.3,0.4265]